bitfinex-derivatives/quotes_SOLF0:USTF0_20250328
["timestamp","ask_amount","ask_price","bid_price","bid_amount"]
[1743173001065,31.97593408,130.24,130.23,7.6816]
[1743173001258,31.97593408,130.24,130.22,7.73461303]
[1743173001458,31.97593408,130.24,130.22,0.05271303]
[1743173001862,39.65693408,130.24,130.22,7.73461303]
[1743173002062,31.97593408,130.24,130.22,7.73461303]
[1743173002968,31.97593408,130.24,130.23,7.6816]
[1743173003862,31.97593408,130.24,130.22,7.73461303]
[1743173004064,0.05594601,130.24,130.22,7.73461303]
[1743173004363,7.73704601,130.24,130.22,7.73461303]
[1743173004570,7.73704601,130.24,130.22,0.05271303]
[1743173004868,7.6816,130.23,130.22,0.05271303]
[1743173005671,0.05594601,130.24,130.22,0.05271303]
[1743173006765,7.73724601,130.24,130.22,0.05271303]
[1743173007265,0.05594601,130.24,130.22,7.73461303]
[1743173007856,7.73714601,130.24,130.22,7.73461303]
[1743173008165,7.73714601,130.24,130.22,0.05271303]
[1743173008463,0.05594601,130.24,130.22,0.05271303]
[1743173008861,7.6816,130.23,130.22,0.05271303]
[1743173011171,17.66955874,130.23,130.22,0.05271303]
[1743173013072,43.02693863,130.23,130.22,0.05271303]
[1743173014473,33.03897989,130.23,130.22,0.05271303]
[1743173014670,43.02693863,130.23,130.22,0.05271303]
[1743173015570,9.98795874,130.19,130.14,4.0427]
[1743173015874,33.03737989,130.23,130.13,7.6872]
[1743173015875,9.98795874,130.17,130.13,7.6872]
[1743173016068,7.6866,130.15,130.13,7.6872]
[1743173016264,28.16,130.17,130.13,9.98795874]
[1743173016775,0.05174902,130.16,130.14,0.05035324]
[1743173016962,38.16795874,130.21,130.15,9.98795874]
[1743173017163,28.18,130.21,130.18,9.98795874]
[1743173018074,35.91536692,130.21,130.18,7.74307254]
[1743173018279,38.22042566,130.21,130.18,0.05887254]
[1743173018771,7.684,130.19,130.18,0.05887254]
[1743173019572,7.6866,130.15,130.07,268.8016]
[1743173019770,28.18,130.17,130.11,9.98795874]
[1743173019968,9.98795874,130.15,130.12,7.6878]
[1743173020168,9.98795874,130.15,130.1,9.98795874]
[1743173020374,9.98795874,130.16,130.11,9.98795874]
[1743173020675,7.6873,130.14,130.11,17.67635874]
[1743173020874,10.04514094,130.15,130.12,0.05467259]
[1743173021070,10.04514094,130.15,130.12,7.74257259]
[1743173021275,7.687,130.14,130.12,0.05467259]
[1743173021777,7.6875,130.13,130.12,0.05467259]
[1743173022680,17.67545874,130.13,130.12,0.05467259]
[1743173025875,38.14795874,130.14,130.12,0.05467259]
[1743173026078,28.16,130.14,130.12,0.05467259]
[1743173026279,38.14795874,130.14,130.12,0.05467259]
[1743173026574,38.14795874,130.14,130.12,7.74237259]
[1743173026775,28.16,130.14,130.12,0.05467259]
[1743173026977,0.0571822,130.15,130.13,9.98795874]
[1743173027178,0.0571822,130.15,130.14,7.6869]
[1743173027878,0.0571822,130.15,130.14,17.67485874]
[1743173028970,42.59323201,130.18,130.12,43.81580457]
[1743173029172,42.59323201,130.18,130.14,15.62113198]
[1743173029576,38.81324394,130.21,130.18,7.6845]
[1743173029873,38.81324394,130.21,130.14,15.62113198]
[1743173030075,0.05275462,130.19,130.14,15.62113198]
[1743173030279,0.05275462,130.19,130.17,7.6848]
[1743173030480,0.05275462,130.19,130.16,0.05320234]
[1743173030682,0.05275462,130.19,130.17,7.6849]
[1743173031481,0.05275462,130.19,130.16,7.73860234]
[1743173032485,7.73675462,130.19,130.16,7.73860234]
[1743173033081,0.05275462,130.19,130.17,7.6849]
[1743173033283,0.05275462,130.19,130.16,0.05320234]
[1743173033683,7.73675462,130.19,130.16,7.73850234]
[1743173034086,0.05275462,130.19,130.16,0.05320234]
[1743173034488,0.05275462,130.19,130.17,7.6848]
[1743173036689,7.73685462,130.19,130.17,7.6848]
[1743173037088,0.05275462,130.19,130.16,0.05320234]
[1743173037390,7.6851,130.17,130.16,0.05320234]
[1743173037577,0.05275462,130.19,130.16,0.05320234]
[1743173037989,7.73705462,130.19,130.16,0.05320234]
[1743173038189,0.05275462,130.19,130.17,7.6848]
[1743173038688,0.05275462,130.19,130.16,0.05320234]
[1743173038887,0.05275462,130.19,130.16,7.73860234]
[1743173039288,7.73705462,130.19,130.16,7.73860234]
[1743173039490,7.73705462,130.19,130.17,7.6849]
[1743173039691,0.05275462,130.19,130.17,7.6849]
[1743173039892,0.05275462,130.19,130.16,0.05320234]
[1743173040492,0.05275462,130.19,130.17,7.6848]
[1743173040791,0.05275462,130.19,130.16,0.05320234]
[1743173040995,0.05275462,130.19,130.17,7.6848]
[1743173041393,0.05275462,130.19,130.16,0.05320234]
[1743173041694,0.05275462,130.19,130.16,7.73890234]
[1743173041889,7.6851,130.17,130.16,0.05320234]
[1743173042694,7.6849,130.18,130.16,0.05320234]
[1743173043397,0.05275462,130.19,130.16,0.05320234]
[1743173043893,7.6851,130.18,130.16,0.05320234]
[1743173044193,0.05275462,130.19,130.16,0.05320234]
[1743173044394,7.6851,130.17,130.16,0.05320234]
[1743173047298,0.05275462,130.19,130.16,0.05320234]
[1743173048399,7.685,130.18,130.16,0.05320234]
[1743173049100,0.05275462,130.19,130.16,0.05320234]
[1743173049999,7.73705462,130.19,130.17,7.6848]
[1743173050400,0.05275462,130.19,130.16,0.05320234]
[1743173051000,7.6851,130.17,130.16,0.05320234]
[1743173051201,10.0498907,130.19,130.16,0.05320234]
[1743173051499,7.6851,130.17,130.16,0.05320234]
[1743173053608,9.99713608,130.17,130.1,14.26883608]
[1743173053905,9.99713608,130.15,130.11,7.6883]
[1743173054204,7.6873,130.14,130.1,14.26883608]
[1743173054401,7.6873,130.14,130.11,7.6881]
[1743173054705,7.7453951,130.14,130.11,7.74285141]
[1743173055005,0.0580951,130.14,130.13,7.6875]
[1743173056105,0.0580951,130.14,130.12,7.6879]
[1743173056308,0.0580951,130.14,130.11,0.05475141]
[1743173056608,7.7454951,130.14,130.11,0.05475141]
[1743173056809,7.7454951,130.14,130.12,7.688]
[1743173058213,0.0580951,130.14,130.11,0.05475141]
[1743173058405,0.0580951,130.14,130.11,10.05188749]
[1743173058909,7.7449951,130.14,130.12,7.6878]
[1743173060602,0.0580951,130.14,130.12,7.6878]
[1743173061098,7.7449951,130.14,130.12,7.6878]
[1743173061611,0.0580951,130.14,130.13,17.68463608]
[1743173062014,9.51e-05,130.14,130.13,17.68463608]
[1743173062205,42.59323201,130.17,130.16,7.6857]
[1743173062510,42.59323201,130.17,130.16,17.68283608]
[1743173065612,0.05417952,130.18,130.17,7.6851]
[1743173065813,0.05417952,130.18,130.17,17.68223608]
[1743173066004,0.05417952,130.18,130.15,14.35882269]
[1743173066207,0.05417952,130.18,130.16,7.6855]
[1743173067212,7.73877952,130.18,130.16,7.6855]
[1743173067714,0.05417952,130.18,130.16,7.6855]
[1743173067916,0.05417952,130.18,130.16,17.68263608]
[1743173068915,0.05417952,130.18,130.16,7.6855]
[1743173070214,0.05417952,130.18,130.15,0.05368661]
[1743173070414,9.99713608,130.16,130.11,214.0409]
[1743173070615,9.99713608,130.13,130.08,14.14643608]
[1743173070912,7.6891,130.11,130.08,4.1493]
[1743173071129,9.99713608,130.13,130.08,4.1493]
[1743173071323,7.6889,130.11,130.08,11.8394]
[1743173071724,7.74255602,130.11,130.08,11.88979695]
[1743173071928,0.05365602,130.11,130.09,7.6896]
[1743173072129,0.05365602,130.11,130.08,4.19969695]
[1743173072330,10.0507921,130.11,130.08,0.05039695]
[1743173072625,7.6897,130.1,130.08,0.05039695]
[1743173072834,0.05365602,130.11,130.08,0.05039695]
[1743173073131,7.6893,130.1,130.08,0.05039695]
[1743173073931,27.97365602,130.11,130.08,0.05039695]
[1743173074318,27.97365602,130.11,130.08,7.74059695]
[1743173074527,27.97365602,130.11,130.08,0.05039695]
[1743173074924,15.64083517,130.1,130.02,19.92163517]
[1743173075527,7.6908,130.08,130.05,7.6921]
[1743173076128,7.74918286,130.08,130.05,7.74256838]
[1743173076630,0.05838286,130.08,130.05,7.74256838]
[1743173077224,0.05838286,130.08,130.05,0.05046838]
[1743173077425,43.69921803,130.08,130.05,0.05046838]
[1743173077825,7.6916,130.06,130.05,0.05046838]
[1743173078427,7.6926,130.05,130.02,7.6936]
[1743173079021,7.6926,130.05,130.0,4.0461]
[1743173079622,0.05669428,130.04,130.01,0.05860454]
[1743173079831,0.05669428,130.04,130.03,7.6933]
[1743173080032,0.05669428,130.04,130.01,0.05860454]
[1743173080237,0.05669428,130.04,130.01,7.75290454]
[1743173080429,0.05669428,130.04,130.01,0.05860454]
[1743173081627,7.74969428,130.04,130.01,7.75290454]
[1743173081935,15.69752945,130.04,130.01,0.05860454]
[1743173082336,0.05669428,130.04,130.01,0.05860454]
[1743173083230,0.05669428,130.04,130.01,7.75290454]
[1743173083832,7.74949428,130.04,130.01,7.75290454]
[1743173084033,7.74949428,130.04,130.01,0.05860454]
[1743173084231,0.05669428,130.04,130.01,0.05860454]
[1743173084435,0.05669428,130.04,130.02,7.6939]
[1743173085739,0.05669428,130.04,130.03,7.6934]
[1743173089945,28.02,130.09,130.07,7.691]
[1743173090145,7.6896,130.1,130.07,7.691]
[1743173090847,27.98,130.12,130.04,15.64083517]
[1743173091037,0.05748666,130.08,130.06,15.64083517]
[1743173091239,0.05748666,130.08,130.06,43.64083517]
[1743173091441,0.05748666,130.08,130.06,43.69374361]
[1743173091842,28.0,130.14,130.06,43.69374361]
[1743173092037,28.0,130.14,130.06,43.64083517]
[1743173092244,7.6885,130.12,130.08,7.6902]
[1743173092747,7.6885,130.12,130.09,7.6897]
[1743173092949,0.05737016,130.11,130.09,7.74867663]
[1743173094249,0.05737016,130.11,130.1,7.6893]
[1743173100357,0.05737016,130.11,130.09,0.05897663]
[1743173101360,7.6893,130.1,130.09,0.05897663]
[1743173101553,0.05737016,130.11,130.09,0.05897663]
[1743173101858,7.6893,130.1,130.09,0.05897663]
[1743173103455,0.05737016,130.11,130.1,7.6893]
[1743173105454,0.05737016,130.11,130.09,0.05897663]
[1743173106359,7.6893,130.1,130.09,0.05897663]
[1743173107959,7.74637016,130.11,130.09,0.05897663]
[1743173108158,0.05737016,130.11,130.09,0.05897663]
[1743173108560,0.05737016,130.11,130.1,7.6893]
[1743173109559,7.74647016,130.11,130.09,0.05897663]
[1743173110456,0.05737016,130.11,130.09,7.74857663]
[1743173111262,7.74607016,130.11,130.09,7.74857663]
[1743173111460,0.05737016,130.11,130.09,7.74857663]
[1743173111661,7.74617016,130.11,130.09,0.05897663]
[1743173111857,0.05737016,130.11,130.09,0.05897663]
[1743173112268,7.6893,130.1,130.09,0.05897663]
[1743173112657,0.05737016,130.11,130.09,0.05897663]
[1743173113362,0.05737016,130.11,130.09,7.74857663]
[1743173113865,0.05737016,130.11,130.09,0.05897663]
[1743173114066,0.05737016,130.11,130.1,7.6893]
[1743173114364,0.05737016,130.11,130.09,0.05897663]
[1743173114563,7.74627016,130.11,130.09,7.74857663]
[1743173114753,0.05737016,130.11,130.09,0.05897663]
[1743173116862,7.6893,130.1,130.09,0.05897663]
[1743173117063,0.05737016,130.11,130.09,0.05897663]
[1743173117461,7.6893,130.1,130.09,0.05897663]
[1743173117668,0.05737016,130.11,130.09,0.05897663]
[1743173117866,0.05737016,130.11,130.09,7.74857663]
[1743173118066,0.05737016,130.11,130.09,0.05897663]
[1743173119470,7.6893,130.1,130.09,0.05897663]
[1743173120968,35.7093,130.1,130.09,0.05897663]
[1743173121372,7.6914,130.07,130.04,28.0]
[1743173121573,28.02,130.1,130.03,253.74]
[1743173121967,7.6915,130.07,130.04,7.6924]
[1743173122170,28.08,130.07,130.0,4.1221]
[1743173122676,0.05071977,130.05,130.02,0.05718845]
[1743173122966,43.76083517,130.04,130.02,0.05718845]
[1743173123169,7.6934,130.03,130.02,0.05718845]
[1743173124167,35.8131,130.04,130.02,0.05718845]
[1743173124867,7.6934,130.03,130.02,0.05718845]
[1743173125870,7.6946,130.01,129.96,253.66]
[1743173126069,7.6946,130.01,129.97,7.6967]
[1743173126262,48.07613517,130.04,129.97,7.6967]
[1743173126558,7.6951,130.01,129.97,7.6967]
[1743173126762,7.6951,130.01,129.98,7.6963]
[1743173126959,0.04991893,130.0,129.98,7.6963]
[1743173127372,0.04991893,130.0,129.99,7.6958]
[1743173128771,0.04991893,130.0,129.98,7.6961]
[1743173128972,0.04991893,130.0,129.97,0.05760178]
[1743173129271,0.04991893,130.0,129.99,7.6958]
[1743173132470,46.68135634,130.07,129.99,43.78083517]
[1743173132672,42.36285634,130.07,130.01,15.64083517]
[1743173132863,42.36285634,130.07,130.02,28.16]
[1743173133069,42.36285634,130.07,130.06,7.6916]
[1743173133979,0.05589396,130.08,130.06,7.6916]
[1743173134278,0.05589396,130.08,130.05,0.05377672]
[1743173134574,0.05589396,130.08,130.05,15.69461189]
[1743173134777,0.05589396,130.08,130.07,7.691]
[1743173135980,42.36285634,130.11,130.09,7.6894]
[1743173136285,42.36285634,130.11,130.07,15.64083517]
[1743173136575,42.36285634,130.11,130.09,7.6895]
[1743173136773,28.16,130.14,130.09,7.6895]
[1743173137175,0.05236676,130.13,130.1,0.05898981]
[1743173138781,15.69320193,130.13,130.05,28.16]
[1743173139077,15.64083517,130.11,130.03,43.78083517]
[1743173139276,32.4822,130.1,130.03,7.6931]
[1743173139578,32.4822,130.1,130.01,47.78893517]
[1743173139778,32.4822,130.1,130.03,15.64083517]
[1743173139980,0.05208296,130.07,130.04,0.05413142]
[1743173140574,0.05208296,130.07,130.05,7.6919]
[1743173141281,0.05208296,130.07,130.06,7.6916]
[1743173141775,0.05208296,130.07,130.04,0.05413142]
[1743173142477,7.6922,130.05,130.04,0.05413142]
[1743173142675,0.05208296,130.07,130.04,0.05413142]
[1743173143381,7.692,130.06,130.04,0.05413142]
[1743173143883,0.05208296,130.07,130.04,0.05413142]
[1743173144481,0.05208296,130.07,130.06,7.6916]
[1743173145286,0.05208296,130.07,130.06,23.33243517]
[1743173145478,10.59071408,130.11,130.08,7.6899]
[1743173145675,7.689,130.11,130.08,7.6899]
[1743173145880,70.50285634,130.13,130.06,15.64083517]
[1743173146074,86.14369151,130.13,130.05,28.14]
[1743173146583,0.05625572,130.1,130.08,0.0590639]
[1743173146984,7.6903,130.09,130.08,0.0590639]
[1743173147180,0.05625572,130.1,130.08,0.0590639]
[1743173148082,7.6899,130.09,130.08,0.0590639]
[1743173148883,0.05625572,130.1,130.09,7.6899]
[1743173149281,0.05625572,130.1,130.08,15.69989907]
[1743173149582,0.05625572,130.1,130.08,0.0590639]
[1743173151072,0.05625572,130.1,130.08,7.7492639]
[1743173151882,0.05625572,130.1,130.09,7.6899]
[1743173153373,0.05625572,130.1,130.08,7.7492639]
[1743173153780,0.05625572,130.1,130.08,0.0590639]
[1743173153982,0.05625572,130.1,130.09,7.6899]
[1743173155580,4.1127,130.15,130.09,32.2852]
[1743173155880,42.36285634,130.16,130.12,15.64083517]
[1743173156286,42.36285634,130.16,130.12,43.88083517]
[1743173156677,0.05145565,130.15,130.13,0.05705054]
[1743173157484,0.05145565,130.15,130.14,7.6869]
[1743173157787,0.05145565,130.15,130.13,7.74435054]
[1743173158188,0.05145565,130.15,130.13,0.05705054]
[1743173158985,0.05145565,130.15,130.13,7.74445054]
[1743173160392,0.05145565,130.15,130.13,0.05705054]
[1743173161584,7.6869,130.14,130.13,0.05705054]
[1743173161789,0.05145565,130.15,130.13,0.05705054]
[1743173162989,7.73815565,130.15,130.13,0.05705054]
[1743173163492,0.05145565,130.15,130.13,0.05705054]
[1743173164593,7.73785565,130.15,130.13,0.05705054]
[1743173164801,0.05145565,130.15,130.13,0.05705054]
[1743173165193,7.73805565,130.15,130.13,0.05705054]
[1743173165494,0.05145565,130.15,130.13,0.05705054]
[1743173165693,28.26,130.14,130.04,269.36083517]
[1743173165891,15.64083517,130.13,130.04,269.36083517]
[1743173166496,15.64083517,130.13,130.06,7.6914]
[1743173166796,28.26,130.14,130.06,15.64083517]
[1743173166997,0.0519705,130.11,130.08,7.74298263]
[1743173167197,0.0519705,130.11,130.08,0.05288263]
[1743173167398,0.0519705,130.11,130.09,7.6894]
[1743173168303,0.0519705,130.11,130.1,7.6893]
[1743173168499,10.59071408,130.15,130.1,43.92083517]
[1743173169306,10.59071408,130.15,130.12,7.6878]
[1743173169708,10.64799894,130.15,130.12,0.05411012]
[1743173170095,0.05728486,130.15,130.12,0.05411012]
[1743173171104,7.74388486,130.15,130.12,7.74211012]
[1743173171608,7.6875,130.13,130.12,0.05411012]
[1743173171800,0.05728486,130.15,130.12,0.05411012]
[1743173172203,7.6872,130.14,130.12,0.05411012]
[1743173172504,0.05728486,130.15,130.12,0.05411012]
[1743173172708,7.74388486,130.15,130.12,7.74211012]
[1743173173205,7.74388486,130.15,130.12,0.05411012]
[1743173174107,7.6871,130.14,130.12,0.05411012]
[1743173174605,0.05728486,130.15,130.12,0.05411012]
[1743173174806,7.6875,130.13,130.12,0.05411012]
[1743173176511,7.6872,130.14,130.12,0.05411012]
[1743173177516,0.05728486,130.15,130.12,15.69494529]
[1743173178806,0.05728486,130.15,130.14,7.6869]
[1743173179002,0.05728486,130.15,130.12,44.03494529]
[1743173179608,42.36285634,130.18,130.12,44.03494529]
[1743173179609,42.36285634,130.18,130.14,15.64083517]
[1743173180011,42.36285634,130.18,130.09,218.221]
[1743173180012,44.04083517,130.17,130.09,4.1801]
[1743173180210,44.04083517,130.17,130.07,15.64083517]
[1743173180211,15.64083517,130.15,130.07,15.64083517]
[1743173180404,15.64083517,130.13,130.05,15.64083517]
[1743173180602,28.44,130.12,130.05,15.64083517]
[1743173180911,7.6891,130.11,130.08,0.05621982]
[1743173181111,28.44,130.12,130.08,0.05621982]
[1743173181614,7.6893,130.1,130.08,0.05621982]
[1743173182115,7.6888,130.11,130.08,0.05621982]
[1743173182316,28.44,130.12,130.08,0.05621982]
[1743173182714,7.6888,130.11,130.08,0.05621982]
[1743173182914,28.44,130.12,130.08,0.05621982]
[1743173183317,7.6893,130.1,130.08,0.05621982]
[1743173183512,28.44,130.12,130.08,0.05621982]
[1743173183817,28.44,130.12,128.28,205.43670194]
[1743173183818,15.64083517,130.11,130.02,15.64083517]
[1743173184005,23.82393517,130.11,130.02,15.64083517]
[1743173184410,15.64083517,130.09,130.0,15.64083517]
[1743173184618,15.64083517,130.07,129.98,297.78083517]
[1743173184920,15.64083517,130.07,129.99,7.6956]
[1743173185114,0.05787677,130.04,130.01,0.05857514]
[1743173185316,44.22083517,130.03,129.94,15.64083517]
[1743173186018,7.6955,130.0,129.96,7.6975]
[1743173186219,44.22083517,130.03,129.96,7.6975]
[1743173186419,51.91453517,130.03,129.97,7.6964]
[1743173186616,0.05618242,130.01,129.98,0.05842752]
[1743173187521,0.05618242,130.01,129.98,7.75462752]
[1743173187715,0.05618242,130.01,129.98,0.05842752]
[1743173188823,0.05618242,130.01,129.98,7.75452752]
[1743173189124,28.61618242,130.01,129.98,0.05842752]
[1743173189919,36.31088242,130.01,129.98,0.05842752]
[1743173190325,28.61618242,130.01,129.98,0.05842752]
[1743173193531,53.6720973,130.01,129.92,253.6]
[1743173193823,53.61591488,130.01,129.92,253.6]
[1743173194223,53.61591488,130.01,129.89,25.05591488]
[1743173194420,25.05591488,129.99,129.88,8.3688]
[1743173194623,0.05287593,129.96,129.94,0.05539757]
[1743173194818,36.3581,129.95,129.94,0.05539757]
[1743173197128,36.3581,129.95,129.88,8.3688]
[1743173197129,7.6991,129.94,129.88,8.3688]
[1743173197427,28.66,129.95,129.86,282.44]
[1743173197631,53.71591488,129.95,129.86,253.76]
[1743173197834,53.71591488,129.95,129.85,214.0409]
[1743173198128,7.6996,129.93,129.84,7.8566]
[1743173198332,0.05193805,129.91,129.89,0.05554791]
[1743173198529,0.05193805,129.91,129.89,7.7013]
[1743173198830,0.05796052,129.91,129.89,0.05298457]
[1743173199226,0.05796052,129.91,129.89,7.75428457]
[1743173199431,0.05796052,129.91,129.89,0.05298457]
[1743173199827,7.7011,129.9,129.89,0.05298457]
[1743173200027,0.05796052,129.91,129.89,0.05298457]
[1743173200534,7.7011,129.9,129.89,0.05298457]
[1743173201732,11.72836052,129.91,129.89,0.05298457]
[1743173202531,7.7011,129.9,129.89,0.05298457]
[1743173203237,7.7011,129.9,129.84,3.9524]
[1743173203238,7.7021,129.89,129.85,7.7037]
[1743173203421,3.9697,129.91,129.84,3.9524]
[1743173203730,3.9697,129.91,129.78,25.05591488]
[1743173203731,7.7038,129.86,129.82,7.7053]
[1743173203932,36.3838,129.86,129.8,214.0409]
[1743173204433,0.04957679,129.84,129.82,0.05178176]
[1743173204828,0.04957679,129.84,129.83,7.7053]
[1743173205226,0.04957679,129.84,129.82,0.05178176]
[1743173205431,0.04957679,129.84,129.83,7.7053]
[1743173206230,7.679e-05,129.84,129.83,7.7053]
[1743173206436,7.679e-05,129.84,129.83,32.76121488]
[1743173208334,7.679e-05,129.84,129.83,7.7053]
[1743173211033,28.68,129.9,129.88,7.7019]
[1743173211229,28.68,129.9,129.84,4.1465]
[1743173212126,0.05813702,129.88,129.86,7.75539758]
[1743173212330,0.05813702,129.88,129.86,0.05229758]
[1743173212737,0.05813702,129.88,129.87,7.7029]
[1743173215841,0.05813702,129.88,129.84,4.1465]
[1743173216740,0.05813702,129.88,129.87,7.7029]
[1743173217244,0.05813702,129.88,129.86,7.7032]
[1743173217543,0.05813702,129.88,129.85,0.05484411]
[1743173217837,0.05813702,129.88,129.85,7.75864411]
[1743173218545,7.76073702,129.88,129.85,0.05484411]
[1743173219143,7.76073702,129.88,129.85,7.75854411]
[1743173219442,0.05813702,129.88,129.85,7.75854411]
[1743173219844,0.05813702,129.88,129.86,7.7034]
[1743173220350,0.05813702,129.88,129.85,0.05484411]
[1743173220837,0.05813702,129.88,129.85,7.75864411]
[1743173221036,0.05813702,129.88,129.85,0.05484411]
[1743173221447,0.05813702,129.88,129.86,7.7034]
[1743173221646,0.05813702,129.88,129.85,0.05484411]
[1743173222145,0.05813702,129.88,129.87,7.7029]
[1743173222540,10.59071408,129.92,129.89,7.7012]
[1743173222745,42.36285634,129.91,129.87,13.45023126]
[1743173222948,42.36285634,129.91,129.89,13.45023126]
[1743173223148,42.36285634,129.91,129.9,7.7011]
[1743173225139,30.31615634,129.91,129.9,7.7011]
[1743173225339,101.10206492,129.92,129.91,7.7005]
[1743173225539,94.61806492,129.92,129.91,21.15073126]
[1743173226042,127.6799523,129.93,129.92,7.6999]
[1743173226248,91.1678523,129.93,129.92,7.6999]
[1743173226449,71.3751523,129.93,129.92,7.6999]
[1743173227045,38.40809962,129.94,129.93,7.6993]
[1743173227242,38.46133524,129.94,129.93,7.6993]
[1743173228744,38.46133524,129.94,129.92,0.0573589]
[1743173229245,38.46133524,129.94,129.92,7.7568589]
[1743173229449,38.46133524,129.94,129.92,0.0573589]
[1743173230551,0.05323562,129.94,129.92,0.0573589]
[1743173230845,7.75233562,129.94,129.92,0.0573589]
[1743173231249,0.05323562,129.94,129.92,0.0573589]
[1743173231853,7.6993,129.93,129.92,0.0573589]
[1743173233351,7.75233562,129.94,129.92,0.0573589]
[1743173233555,0.05323562,129.94,129.92,0.0573589]
[1743173234052,7.6993,129.93,129.92,0.0573589]
[1743173237353,11.9046,129.93,129.92,0.0573589]
[1743173239152,40.2846,129.93,129.92,0.0573589]
[1743173239354,40.2646,129.93,129.92,0.0573589]
[1743173240252,32.5653,129.93,129.92,0.0573589]
[1743173240457,0.05323562,129.94,129.92,0.0573589]
[1743173241053,0.05323562,129.94,129.92,7.7571589]
[1743173241254,0.05323562,129.94,129.92,0.0573589]
[1743173241453,0.05323562,129.94,129.93,7.6993]
[1743173241856,0.05323562,129.94,129.93,21.14953126]
[1743173242060,0.05323562,129.94,129.93,7.6993]
[1743173242951,0.05323562,129.94,129.92,0.0573589]
[1743173243560,0.05323562,129.94,129.93,7.6993]
[1743173244857,3.939,130.0,129.93,13.45023126]
[1743173245063,3.939,130.0,129.95,13.45023126]
[1743173245064,11.6344,130.0,129.95,13.45023126]
[1743173245358,3.939,130.0,129.95,13.45023126]
[1743173245961,0.05890816,129.99,129.96,0.05115327]
[1743173246358,28.41890816,129.99,129.92,36.0596]
[1743173246558,28.36,129.99,129.92,28.36]
[1743173246952,7.6973,129.97,129.94,7.6985]
[1743173247364,28.36,129.99,129.92,28.36]
[1743173247562,0.05523365,129.97,129.95,7.698]
[1743173247764,0.05523365,129.97,129.94,0.05402057]
[1743173248168,0.05523365,129.97,129.96,7.6976]
[1743173248468,0.05523365,129.97,129.95,13.45023126]
[1743173248661,0.05523365,129.97,129.96,7.6976]
[1743173249857,0.05523365,129.97,129.95,49.50813126]
[1743173250054,0.05523365,129.97,129.95,41.81023126]
[1743173250569,0.05523365,129.97,129.96,7.6976]
[1743173250767,0.05523365,129.97,129.95,41.81023126]
[1743173251167,0.05523365,129.97,129.96,7.6976]
[1743173251868,0.05523365,129.97,129.95,41.81023126]
[1743173252369,0.05523365,129.97,129.95,49.50803126]
[1743173252765,0.05523365,129.97,129.94,0.05402057]
[1743173253472,7.6981,129.95,129.94,0.05402057]
[1743173253661,0.05523365,129.97,129.94,0.05402057]
[1743173254060,7.75243365,129.97,129.94,7.75242057]
[1743173256879,7.75243365,129.97,129.95,7.6981]
[1743173257474,7.75243365,129.97,129.94,7.75242057]
[1743173260979,7.6976,129.96,129.94,0.05402057]
[1743173261481,7.6981,129.95,129.94,0.05402057]
[1743173262389,7.6979,129.96,129.94,0.05402057]
[1743173262888,7.75253365,129.97,129.94,0.05402057]
[1743173263587,7.6976,129.96,129.94,0.05402057]
[1743173264585,7.6981,129.95,129.94,0.05402057]
[1743173265084,17.69083126,129.96,129.9,253.98]
[1743173265278,13.45023126,129.94,129.86,7.7032]
[1743173265474,28.28,129.93,129.85,41.73023126]
[1743173265679,7.7002,129.92,129.87,13.45023126]
[1743173266077,7.7008,129.91,129.87,13.45023126]
[1743173266285,0.05757369,129.91,129.88,0.05845429]
[1743173266683,7.7014,129.9,129.88,0.05845429]
[1743173266884,0.05757369,129.91,129.89,8.60273469]
[1743173267377,0.05757369,129.91,129.88,8.66118898]
[1743173267783,0.05757369,129.91,129.89,7.7016]
[1743173267983,0.05757369,129.91,129.88,8.66118898]
[1743173268379,7.75807369,129.91,129.88,16.36328898]
[1743173268579,0.05757369,129.91,129.88,0.05845429]
[1743173268984,7.7011,129.9,129.88,0.05845429]
[1743173269684,0.05757369,129.91,129.89,41.80722503]
[1743173269879,0.05757369,129.91,129.9,7.7011]
[1743173272984,4.2406,129.96,129.89,41.80722503]
[1743173273181,4.2406,129.96,129.92,13.44722503]
[1743173273385,11.9387,129.96,129.92,21.14682503]
[1743173273688,11.9387,129.96,129.92,41.90722503]
[1743173274082,4.2074,129.99,129.94,7.6987]
[1743173274083,0.05050344,129.95,129.94,7.6987]
[1743173274286,8.3641,129.99,129.93,0.05474355]
[1743173274486,7.75616465,129.96,129.93,7.75364355]
[1743173274688,0.05856465,129.96,129.93,0.05474355]
[1743173275078,0.05856465,129.96,129.94,7.6987]
[1743173275281,0.05856465,129.96,129.93,0.05474355]
[1743173275686,0.05856465,129.96,129.95,7.6981]
[1743173276083,0.05856465,129.96,129.94,7.6984]